[Event "12th WLC Weekend 2022"]
[Site "Eindhoven"]
[Date "2022.05.15"]
[Round "5.24"]
[White "Grooten, Tommy"]
[Black "Van Zon, Paul"]
[Result "0-1"]
[ECO "B38"]
[WhiteElo "1847"]
[BlackElo "2000"]
[Annotator "TA"]
[PlyCount "98"]
[EventDate "2022.05.13"]
[EventType "swiss"]
[EventCountry "NED"]
[SourceTitle "playchess.com"]
[Source "ChessBase"]
[SourceQuality "1"]
[TimeControl "5400+30"]

{[%evp 23,98,40,52,39,44,42,42,45,40,36,40,38,36,-128,0,-165,-144,-158,-153,-145,-135,-164,-151,-166,-175,-183,-185,-245,-166,-207,-192,-247,-247,-251,-236,-306,-287,-296,-254,-323,-304,-353,-266,-345,-279,-271,-263,-327,-248,-250,-250,-235,-181,-335,-304,-304,-304,-459,-423,-482,-333,-279,0,0,0,-29987,-29988,-29988,-29989,-29992,-29993,-29993,-29994,-29994,-29995,-29995,-420]} 1. e4 {[%emt 0:00:03]} c5 {[%emt 0:00:08]} 2. Nf3 {[%emt 0:00:15]} g6 {[%emt 0:00:12]} 3. d4 {[%emt 0:00:11]} cxd4 {[%emt 0:00:06]} 4. Nxd4 {[%emt 0:00:05]} Bg7 {[%emt 0:00:10]} 5. Be3 {[%emt 0:00:46]} Nc6 {[%emt 0:00:36]} 6. c4 {[%emt 0:01:15]} Nf6 {[%emt 0:00:10]} 7. Nc3 {[%emt 0:00:08]} O-O {[%emt 0:00:06]} 8. Be2 {[%emt 0:00:14]} d6 {[%emt 0:00:39]} 9. O-O {[%emt 0:00:20]} Bd7 {[%emt 0:01:15]} 10. Qd2 {[%emt 0:00:14]} Ng4 {[%emt 0:12:56]} 11. Bxg4 {[%emt 0:00:26]} Bxg4 {[%emt 0:00:03]} 12. f3 {[%emt 0:00:15]} Bd7 {[%emt 0:05:36]} 13. Kh1 {[%emt 0:00:19] B38: Sicilian: Maroczy Bind with 5...Bg7 and 7...0-0.} Qa5 {[%emt 0:01:40]} 14. Rac1 {[%emt 0:02:38]} Rfe8 {[%emt 0:12:40]} 15. Rfd1 {[%emt 0:01:20] White is slightly better.} Rac8 {[%emt 0:04:11]} 16. b3 {[%emt 0:00:48] [#]} Be6 $146 {[%emt 0:14:21]} ({Predecessor:} 16... Ne5 17. Nce2 Qxd2 18. Rxd2 a6 19. h3 b5 20. f4 Nc6 21. cxb5 Nxd4 22. Rxc8 Rxc8 23. Bxd4 Bxb5 24. Bxg7 Kxg7 {½-½ (29) Gregg,A (1719)-Korinek,J (1721) LSS email 2011}) 17. Qf2 {[%emt 0:06:38]} a6 {[%emt 0:05:12]} 18. Qg3 $2 {[%emt 0:02:16]} (18. a4 $14 {keeps the upper hand.}) 18... b5 {[%emt 0:08:02]} ({Black should try} 18... Nxd4 $17 19. Bxd4 Bxd4 20. Rxd4 b5) 19. f4 {[%emt 0:04:13]} (19. Nxe6 $11 {and White has nothing to worry.} fxe6 20. cxb5 axb5 21. Bd2) 19... Nxd4 $19 {[%emt 0:08:41]} (19... bxc4 20. Nxe6 fxe6 21. Na4 $17) 20. Bxd4 {[%emt 0:00:21]} Bxd4 {[%emt 0:00:32]} (20... bxc4 21. Bxg7 Kxg7 22. f5 $17) 21. Rxd4 {[%emt 0:00:09]} bxc4 {[%emt 0:00:08]} 22. f5 {[%emt 0:00:18] [#]} Qe5 {[%emt 0:01:48]} 23. Qf2 {[%emt 0:02:09]} (23. Qxe5 dxe5 24. Rdd1 gxf5 25. exf5 Bxf5) 23... gxf5 {[%emt 0:03:29]} 24. exf5 {[%emt 0:00:30]} Qxf5 {[%emt 0:00:41]} ({Much less strong is} 24... Bxf5 25. Rd5 Qg7 26. Rxf5 $18 (26. Qxf5 $2 e6 $19)) 25. Rf4 {[%emt 0:00:56]} (25. Qxf5 $142 Bxf5 26. bxc4) 25... Qg6 {[%emt 0:01:08]} 26. Rf3 {[%emt 0:00:59]} Kh8 {[%emt 0:01:27]} ({And not} 26... cxb3 27. Rg3 Bg4 28. h3 $11) 27. Rf1 {[%emt 0:00:53]} (27. b4 $142) 27... cxb3 {[%emt 0:01:20]} 28. axb3 {[%emt 0:00:55]} Rc5 {[%emt 0:00:46]} 29. Qd2 {[%emt 0:07:43]} Rg8 {[%emt 0:02:12]} 30. Rg3 {[%emt 0:02:36]} Rg5 {[%emt 0:01:15]} 31. Rxg5 {[%emt 0:01:42]} Qxg5 {[%emt 0:00:10]} 32. Qb2 {[%emt 0:00:39]} f6 {[%emt 0:01:23]} 33. b4 {[%emt 0:02:25]} Bd5 {[%emt 0:02:39]} 34. Nxd5 {[%emt 0:00:17]} Qxd5 {[%emt 0:00:15][%mdl 4096] Endgame KQR-KQR} 35. Qf2 {[%emt 0:01:21]} Rg6 {[%emt 0:04:03]} 36. Re1 {[%emt 0:01:21]} Qb7 {[%emt 0:01:30]} 37. h3 {[%emt 0:02:57]} e5 {[%emt 0:00:52]} 38. Qd2 $2 {[%emt 0:01:43]} (38. Rc1) 38... d5 {[%emt 0:00:59][%cal Bd6d5,Bd5d4,Bd4d3][%mdl 32]} 39. Rc1 {[%emt 0:00:45]} d4 {[%emt 0:00:31][%cal Od4d3]} 40. Qf2 {[%emt 0:02:42]} (40. Rc2 {might work better.}) 40... d3 {[%emt 0:03:36] And now ...e4 would win.} 41. Rc4 {[%emt 0:01:23]} e4 {[%emt 0:02:44][%cal Oe4e3] ( -> ...e3!)} 42. Qe3 {[%emt 0:00:44] [#]} f5 {[%emt 0:00:36]} (42... Rg8 $1 $19 43. Qxe4 Qxe4 44. Rxe4 Rd8) 43. Qd4+ $11 {[%emt 0:00:06]} Rg7 {[%emt 0:00:08] Hoping for ...Qd7.} 44. Qf6 $2 {[%emt 0:00:34][%mdl 8192]} (44. Rc6 $11 Qxc6 45. Qd8+ Rg8 46. Qd4+ Rg7 47. Qd8+ Rg8 48. Qd4+ Rg7) 44... e3 {[%emt 0:00:51][%csl Gg7][%cal Rb7g2] Black mates.} 45. Rc6 {[%emt 0:00:47]} e2 {[%emt 0:00:32]} 46. Qe6 {[%emt 0:00:52] [#]} Qxc6 $3 {[%emt 0:00:22][%mdl 512]} 47. Qxc6 {[%emt 0:00:19]} e1=Q+ {[%emt 0:00:06]} 48. Kh2 {[%emt 0:00:06]} Qg3+ {[%emt 0:00:09]} 49. Kg1 {[%emt 0:00:22]} Qxg2+ {[%emt 0:00:27] Weighted Error Value: White=0.56/Black=0.33} 0-1

[Event "12th WLC Weekend 2022"]
[Site "Eindhoven"]
[Date "2022.05.15"]
[Round "5.25"]
[White "Molenaar, Toine"]
[Black "Winkels, Marcel"]
[Result "1/2-1/2"]
[ECO "A57"]
[WhiteElo "1823"]
[BlackElo "1965"]
[Annotator "TA"]
[PlyCount "208"]
[EventDate "2022.05.13"]
[EventType "swiss"]
[EventCountry "NED"]
[SourceTitle "playchess.com"]
[Source "ChessBase"]
[SourceQuality "1"]
[TimeControl "5400+30"]

{[%evp 11,208,24,56,5,22,8,8,3,20,-43,-46,-54,-35,-46,-49,-40,-31,-33,-17,-52,-49,-58,-58,-55,-50,-59,-49,-50,-41,-49,-26,-40,-30,-37,-31,-73,-73,-66,-65,-65,-53,-65,-64,-63,-62,-76,-73,-76,-58,-76,-76,-91,-76,-114,-99,-112,-84,-112,-98,-98,-83,-114,-98,-98,-74,-114,-112,-104,-91,-114,-114,-114,-114,-114,-98,-133,-93,-126,-126,-126,-86,-133,-86,-126,-98,-126,-86,-126,0,-126,-86,-126,0,-133,-98,-133,-133,-133,-98,-126,-98,-126,-98,-126,-126,-145,-141,-184,-177,-168,-126,-133,-126,-133,-126,-126,-126,-126,-50,-50,-50,-66,-66,-66,-66,-66,-44,-44,-44,-44,0,-44,-44,-44,-14,-44,-14,-14,-14,-14,-14,-14,-14,-14,-14,-14,-14,-14,-14,-44,-44,-44,-14,-14,-14,-14,-11,-14,-14,-194,-14,-14,-14,-14,-14,-14,0,-14,-14,-14,0,0,58,58,58,58,58,0,0,0,0,0,0,0,0,0,0,0,0,0,0,0,0,0,0,0,0,-29971,0]} 1. d4 {[%emt 0:00:15]} Nf6 {[%emt 0:00:06]} 2. c4 {[%emt 0:00:05]} c5 {[%emt 0:00:03]} 3. d5 {[%emt 0:00:28]} b5 {[%emt 0:00:04]} 4. Qc2 {[%emt 0:00:16]} b4 {[%emt 0:00:10]} 5. Nf3 {[%emt 0:02:48]} g6 {[%emt 0:00:23]} 6. e4 {[%emt 0:02:24]} d6 {[%emt 0:00:26]} 7. h3 {[%emt 0:01:23] A57: Benko/Volga Gambit.} (7. a3 $14) 7... Bg7 $11 {[%emt 0:00:10]} 8. Bd3 {[%emt 0:00:20]} O-O {[%emt 0:00:21]} 9. O-O {[%emt 0:00:56] The position is equal.} e5 {[%emt 0:03:31]} 10. dxe6 {[%emt 0:08:59]} (10. a3) (10. a3 $11) 10... Bxe6 $15 {[%emt 0:00:49]} 11. Be3 {[%emt 0:13:00] [#]} Qc7 $146 {[%emt 0:05:24]} ({Predecessor:} 11... Nc6 12. Nbd2 Nd7 13. Rfe1 Qf6 14. Rab1 h6 15. Bf1 a5 16. Nh2 a4 17. Ng4 Bxg4 18. hxg4 {1-0 (46) Gralka,J (2325)-Morvay,M (2270) Budapest 1986}) 12. Nbd2 {[%emt 0:02:39]} Nc6 {[%emt 0:00:23]} 13. Rad1 {[%emt 0:09:12]} Nd7 {[%emt 0:01:44]} 14. Ng5 {[%emt 0:06:30]} Nd4 {[%emt 0:01:13]} 15. Nxe6 {[%emt 0:03:57]} fxe6 {[%emt 0:00:48]} 16. Bxd4 {[%emt 0:07:40]} cxd4 {[%emt 0:01:34]} 17. Be2 {[%emt 0:02:00]} e5 {[%emt 0:07:32]} 18. Bg4 {[%emt 0:05:38]} Nc5 {[%emt 0:00:54]} 19. Nb3 {[%emt 0:03:46]} Rf6 {[%emt 0:04:27]} 20. Nxc5 {[%emt 0:06:31]} Qxc5 {[%emt 0:00:17]} 21. Qa4 {[%emt 0:03:48]} Raf8 {[%emt 0:02:14]} ({Much less strong is} 21... Qxc4 22. Rc1 Qf7 23. Qa5 $11) 22. Qb5 {[%emt 0:01:35]} h5 {[%emt 0:04:01]} 23. Qxc5 {[%emt 0:02:03]} dxc5 {[%emt 0:00:02]} 24. Be2 {[%emt 0:00:55]} Ra6 {[%emt 0:00:54]} 25. Ra1 {[%emt 0:00:55]} Rff6 {[%emt 0:01:12]} 26. Bd3 {[%emt 0:04:13]} Bh6 {[%emt 0:01:21]} 27. Rfd1 {[%emt 0:00:21]} Rab6 {[%emt 0:04:22]} 28. Bc2 {[%emt 0:00:52]} Rf4 {[%emt 0:01:12]} 29. Bd3 {[%emt 0:01:05]} h4 {[%emt 0:01:01]} 30. f3 {[%emt 0:01:43]} Rf7 {[%emt 0:01:02]} 31. Re1 {[%emt 0:02:02]} Be3+ {[%emt 0:00:32]} 32. Kh2 {[%emt 0:00:26]} Bf4+ {[%emt 0:00:47]} 33. Kg1 {[%emt 0:00:15]} Bg3 {[%emt 0:01:56]} 34. Re2 {[%emt 0:00:31]} g5 {[%emt 0:01:36]} 35. Rd2 {[%emt 0:01:34]} Kf8 {[%emt 0:02:36]} 36. Rf1 {[%emt 0:01:55]} Ke8 {[%emt 0:00:21]} 37. Ra1 {[%emt 0:00:13]} Kd8 {[%emt 0:00:14]} 38. Rf1 {[%emt 0:00:05]} Kc8 {[%emt 0:00:16]} 39. Ra1 {[%emt 0:00:54]} Kb8 {[%emt 0:00:34]} 40. Rf1 {[%emt 0:00:11]} Bf4 {[%emt 0:00:38]} 41. Rdd1 {[%emt 0:00:49]} Be3+ {[%emt 0:00:59]} 42. Kh2 {[%emt 0:00:16]} a5 {[%emt 0:02:08]} 43. Kh1 {[%emt 0:00:35]} Rh6 {[%emt 0:01:42]} 44. Kh2 {[%emt 0:00:30]} Bf4+ {[%emt 0:00:16]} 45. Kg1 {[%emt 0:00:17]} Rhf6 {[%emt 0:03:18]} 46. Kh1 {[%emt 0:02:07]} ({White should try} 46. Bc2) 46... Ka7 {[%emt 0:02:40]} (46... a4 $142 47. Ra1 Be3) 47. Be2 {[%emt 0:00:29]} Ka6 {[%emt 0:00:51]} 48. Bd3 {[%emt 0:00:08]} Kb6 {[%emt 0:00:45]} 49. Be2 {[%emt 0:00:12]} Ka6 {[%emt 0:01:47]} 50. Bd3 $1 {[%emt 0:00:07]} Kb7 {[%emt 0:00:53]} 51. Be2 {[%emt 0:00:03]} Kb8 {[%emt 0:00:23]} 52. Bd3 $1 {[%emt 0:00:06]} Rb7 {[%emt 0:00:44]} 53. Be2 {[%emt 0:00:18]} Rd6 {[%emt 0:00:42]} 54. Bd3 {[%emt 0:00:08]} Rbd7 {[%emt 0:00:15]} 55. Kg1 {[%emt 0:00:43]} Rf7 {[%emt 0:02:54]} 56. Kh1 {[%emt 0:00:13]} Be3 {[%emt 0:00:27]} 57. Kh2 {[%emt 0:00:13]} a4 {[%emt 0:03:33]} 58. Kh1 {[%emt 0:01:12]} b3 {[%emt 0:01:08]} 59. a3 {[%emt 0:00:14]} Rdf6 {[%emt 0:00:28]} 60. Kh2 {[%emt 0:04:18]} Rh6 {[%emt 0:02:04]} 61. Be2 {[%emt 0:01:32]} Kc7 {[%emt 0:00:14]} 62. Rd3 {[%emt 0:00:47]} Kd6 {[%emt 0:00:24]} 63. Rdd1 {[%emt 0:01:06]} Bf4+ {[%emt 0:01:00]} 64. Kh1 {[%emt 0:00:10]} g4 {[%emt 0:00:42]} (64... Kc6 $17 65. Bd3 Rh8) 65. fxg4 {[%emt 0:00:16]} Rhf6 {[%emt 0:00:17]} 66. Bf3 {[%emt 0:00:50]} Kc6 {[%emt 0:00:37][%mdl 1024] Black has compensation.} 67. Rd3 {[%emt 0:00:18]} Rd7 {[%emt 0:00:33]} 68. Rfd1 {[%emt 0:00:27]} Bg5 {[%emt 0:00:27]} 69. Kg1 {[%emt 0:00:24]} Be3+ {[%emt 0:00:17]} 70. Kf1 {[%emt 0:00:22]} Rdf7 {[%emt 0:00:10]} 71. Ke2 {[%emt 0:00:10]} (71. Rxe3 $5 dxe3 72. Ke2 $11) 71... Bg5 {[%emt 0:00:40]} 72. Rf1 {[%emt 0:00:11]} Kd6 {[%emt 0:00:22]} 73. Rfd1 {[%emt 0:00:34]} Ke6 {[%emt 0:00:34]} 74. Rf1 {[%emt 0:00:25]} Rf4 {[%emt 0:01:11]} 75. Rg1 {[%emt 0:01:06]} Bh6 {[%emt 0:00:17]} 76. Rgd1 {[%emt 0:00:57]} R4f6 {[%emt 0:00:24]} 77. Rf1 {[%emt 0:00:24]} Bg5 {[%emt 0:00:34]} 78. Rg1 {[%emt 0:00:10]} Bf4 {[%emt 0:00:10]} 79. Rf1 {[%emt 0:00:06]} Ke7 {[%emt 0:00:18]} 80. Rfd1 {[%emt 0:00:30]} (80. Rdd1 {keeps more tension.} Be3 81. Kd3 Rd6 82. Rh1) 80... Kf8 {[%emt 0:00:07]} 81. Rf1 {[%emt 0:00:48]} Kg7 {[%emt 0:00:05]} 82. Rdd1 {[%emt 0:01:02]} Kh6 {[%emt 0:00:06]} 83. Kd3 {[%emt 0:00:37]} Kg5 {[%emt 0:00:10]} 84. Rde1 {[%emt 0:00:42]} Be3 {[%emt 0:00:30]} 85. Rh1 $2 {[%emt 0:00:44]} (85. Rd1 $11) 85... Kf4 $2 {[%emt 0:01:15]} (85... Rxf3 $19 86. gxf3 Rxf3) 86. Ref1 {[%emt 0:00:49]} Kg3 {[%emt 0:00:16]} 87. Ke2 $1 {[%emt 0:00:10]} Bg5 {[%emt 0:00:39][%cal Od4d3]} 88. Rd1 {[%emt 0:00:32]} Be3 {[%emt 0:02:08]} 89. Rdf1 {[%emt 0:00:07]} Rf4 {[%emt 0:00:37]} 90. Kd3 {[%emt 0:00:20]} Rxf3 {[%emt 0:07:40]} (90... Rf8 {is interesting.} 91. Ke2 R4f7 92. Rd1 Kf4) 91. gxf3 {[%emt 0:00:06]} Rxf3 {[%emt 0:00:16]} (91... Kg2 $11) 92. Rxf3+ $14 {[%emt 0:00:47]} Kxf3 $11 {[%emt 0:00:07][%mdl 4096] Endgame KR-KB} 93. Rf1+ $1 {[%emt 0:00:23]} Kg2 {[%emt 0:00:54]} 94. Ke2 {[%emt 0:01:06]} (94. Rf5 $14 Kxh3 95. g5 (95. Rxe5 Kxg4 96. Re7 Bg5 $19)) 94... Kxh3 {[%emt 0:01:26]} 95. Kf3 {[%emt 0:00:06][%cal Rf1h1] [#]} Kh2 {[%emt 0:01:16] Prevents Rh1+.} 96. Re1 {[%emt 0:00:38]} Bf4 {[%emt 0:00:53]} 97. Rd1 {[%emt 0:00:16]} Bg5 {[%emt 0:04:19]} 98. Re1 {[%emt 0:00:18]} d3 {[%emt 0:01:36]} 99. Rd1 {[%emt 0:00:45]} d2 {[%emt 0:00:24] Hoping for ...h3.} 100. Rf1 {[%emt 0:00:20]} Bf4 {[%emt 0:00:25]} (100... h3 $5 101. Rd1 Bf4 $11) 101. Rd1 {[%emt 0:00:21]} Bg5 {[%emt 0:05:05] And now ...h3 would win.} 102. Rf1 {[%emt 0:00:21]} h3 {[%emt 0:00:55] ( -> ...Bh4)} 103. Rd1 {[%emt 0:00:18]} Bf4 {[%emt 0:00:41] Strongly threatening ...Bg5.} 104. Rf1 $2 {[%emt 0:01:20][%mdl 8192] [#]} (104. Ra1 $11) 104... Bg5 $2 {[%emt 0:00:32] Weighted Error Value: White=0.17 (very precise) /Black=0.19 (very precise)} (104... Bg3 $1 {mates} 105. Ra1 Be1 106. g5 Kg1 107. Kg4 h2 108. Kf5 h1=Q 109. g6 Qf3+ 110. Ke6 Qxe4 111. Kf6 Qf3+ 112. Ke6 d1=Q 113. Rxd1 Qxd1 114. g7 Qg4+ 115. Kf7 Qf5+ 116. Ke7 Bh4+ 117. Kd6 Qf6+ 118. Kd5 Qxg7 119. Kc6 e4 120. Kd6 Qxb2 121. Kc6 Qf6+ 122. Kxc5 b2 123. Kb5 b1=Q+ 124. Kc5 Bf2+ 125. Kd5 Qd3#) 1/2-1/2

[Event "12th WLC Weekend 2022"]
[Site "Eindhoven"]
[Date "2022.05.15"]
[Round "5.26"]
[White "Klapwijk, Leo"]
[Black "De Vries, Leon"]
[Result "1-0"]
[ECO "B23"]
[WhiteElo "1828"]
[BlackElo "1951"]
[Annotator "TA"]
[PlyCount "66"]
[EventDate "2022.05.13"]
[EventType "swiss"]
[EventCountry "NED"]
[SourceTitle "playchess.com"]
[Source "ChessBase"]
[SourceQuality "1"]
[TimeControl "5400+30"]

{[%evp 10,66,-13,-24,-12,-34,-35,-39,-10,-33,-31,-58,-44,-62,-62,-87,-66,-73,-77,-106,-100,-102,-107,-96,-70,-70,-82,-110,-104,-112,-98,-122,-91,-129,-76,-134,-39,-68,-63,-73,-10,-73,-62,-221,25,31,99,106,97,107,146,140,29987,29988,29988,29989,29989,29990,29990]} 1. e4 {[%emt 0:00:03]} c5 {[%emt 0:00:23]} 2. Nc3 {[%emt 0:00:07]} Nc6 {[%emt 0:00:12]} 3. f4 {[%emt 0:00:20]} g6 {[%emt 0:00:10]} 4. Nf3 {[%emt 0:00:37]} Bg7 {[%emt 0:00:15]} 5. d3 {[%emt 0:05:36]} d6 {[%emt 0:00:59]} 6. Be3 {[%emt 0:02:49]} Nd4 {[%emt 0:02:29] B23: Closed Sicilian: Lines without g3.} 7. h3 {[%emt 0:02:41]} e6 {[%emt 0:02:28] [#]} 8. Bf2 $146 {[%emt 0:00:42]} ({Predecessor:} 8. Rb1 Ne7 9. g4 f5 10. Bg2 Nec6 11. O-O O-O 12. Ne2 e5 13. gxf5 gxf5 14. fxe5 Nxf3+ 15. Rxf3 Nxe5 {1-0 (25) Gazik,V (2291)-Maslik,M (2365) Slovakia 2015}) 8... a6 {[%emt 0:00:54] Black is slightly better.} 9. Rb1 {[%emt 0:02:12]} Ne7 {[%emt 0:01:34]} 10. Be2 {[%emt 0:04:09]} Nec6 {[%emt 0:01:24]} 11. a3 {[%emt 0:03:38]} b5 {[%emt 0:04:36]} 12. Na2 {[%emt 0:01:35]} Nxf3+ {[%emt 0:06:15]} 13. Bxf3 {[%emt 0:01:53][%cal Oe4e5]} Nd4 {[%emt 0:00:39]} 14. c3 {[%emt 0:00:39]} Nxf3+ {[%emt 0:00:26]} 15. Qxf3 {[%emt 0:00:10][%cal Oe4e5]} Bb7 {[%emt 0:00:27]} 16. O-O {[%emt 0:00:09]} Rc8 {[%emt 0:03:24]} 17. Qe2 {[%emt 0:00:59]} O-O {[%emt 0:01:11]} 18. Rbc1 {[%emt 0:05:05]} f5 {[%emt 0:01:01]} 19. exf5 {[%emt 0:05:24]} exf5 {[%emt 0:01:56]} 20. c4 {[%emt 0:04:48]} Re8 {[%emt 0:04:32]} 21. Qc2 {[%emt 0:00:46]} Kh8 {[%emt 0:06:43]} (21... g5 $142 22. Bg3 Rc7) 22. Nc3 {[%emt 0:01:13]} (22. Qd2 $142) 22... b4 {[%emt 0:01:52]} (22... g5 $17 23. Bg3 Bd4+ 24. Kh2 g4 25. cxb5 gxh3 26. gxh3 Qd7 27. bxa6 Bxa6) 23. axb4 {[%emt 0:01:38]} cxb4 {[%emt 0:00:10]} 24. Ne2 {[%emt 0:09:56][%cal Bc3e2,Be2d4,Bd4f5,Bf5h6][%mdl 32]} b3 {[%emt 0:06:22]} (24... d5 $17 {aiming for ...dxc4.} 25. Rfd1 dxc4 26. dxc4 Qc7) 25. Qd2 {[%emt 0:00:21] [#]} (25. Qd1 $11 {remains equal.}) 25... d5 $1 $17 {[%emt 0:01:48]} 26. Bd4 $2 {[%emt 0:01:25]} (26. Rfd1 $15) 26... Bxd4+ $2 {[%emt 0:03:16]} (26... dxc4 $19 27. Bxg7+ (27. dxc4 $2 Kg8 $19) 27... Kxg7) 27. Nxd4 $11 {[%emt 0:00:43] Strongly threatening Qc3.} Qb6 {[%emt 0:04:25] [#]} ({Black should try} 27... Qf6 $14 28. Qc3 dxc4 29. dxc4 Re4) 28. Qc3 $1 $16 {[%emt 0:00:41] Threatens to win with c5.} dxc4 {[%emt 0:00:39]} 29. dxc4 {[%emt 0:00:45][%cal Bd3c4,Bc4c5][%mdl 32]} Bd5 {[%emt 0:08:38]} 30. c5 {[%emt 0:01:29] Threatening mate with Ne6+.} Qa7 $2 {[%emt 0:00:13][%mdl 8192]} (30... Qf6 $16 31. Rfd1 Rc7) 31. Nxf5+ $1 {[%emt 0:01:52] White mates.} Kg8 {[%emt 0:00:06]} 32. Nh6+ {[%emt 0:00:24]} Kf8 {[%emt 0:00:17]} 33. Qh8+ {[%emt 0:00:11]} Ke7 {[%emt 0:00:05] Weighted Error Value: White=0.29 (precise) /Black=0.60} 1-0

[Event "12th WLC Weekend 2022"]
[Site "Eindhoven"]
[Date "2022.05.15"]
[Round "5.27"]
[White "Van Kuijk, Vadim"]
[Black "Krenning, Jasper"]
[Result "1-0"]
[ECO "C66"]
[WhiteElo "1898"]
[BlackElo "1736"]
[Annotator "NA RC COMBH"]
[PlyCount "77"]
[EventDate "2022.05.13"]
[EventType "swiss"]
[EventCountry "NED"]
[SourceTitle "playchess.com"]
[Source "ChessBase"]
[SourceQuality "1"]
[TimeControl "5400+30"]

1. e4 {[%emt 0:02:19]} e5 {[%emt 0:00:06]} 2. Nf3 {[%emt 0:00:04]} Nc6 {[%emt 0:00:07]} 3. Bb5 {[%emt 0:00:04]} d6 {[%emt 0:00:07]} 4. d4 {[%emt 0:01:05]} exd4 {[%emt 0:00:07]} 5. Nxd4 {[%emt 0:00:05]} Bd7 {[%emt 0:00:09]} 6. Nc3 {[%emt 0:00:56]} Nf6 {[%emt 0:04:38]} 7. O-O {[%emt 0:08:17]} Be7 {[%emt 0:01:23]} 8. Nxc6 {[%emt 0:07:59]} bxc6 {[%emt 0:00:11]} 9. Bc4 {[%emt 0:00:11]} O-O $14 {[%emt 0:00:56]} 10. f4 {[%emt 0:02:29]} (10. f3 $14 {is superior.}) 10... Be6 {[%emt 0:03:47]} 11. Bd3 {[%emt 0:01:28]} d5 {[%emt 0:06:21]} 12. e5 {[%emt 0:03:32]} Bc5+ {[%emt 0:00:53]} 13. Kh1 {[%emt 0:00:43]} Ng4 {[%emt 0:04:44]} 14. Qe1 {[%emt 0:01:29]} f5 {[%emt 0:05:53]} 15. h3 {[%emt 0:14:33]} Nh6 {[%emt 0:01:33]} 16. Ne2 {[%emt 0:03:06]} Bb6 {[%emt 0:15:50]} 17. a4 {[%emt 0:07:45]} a5 {[%emt 0:07:49]} 18. b3 {[%emt 0:02:28]} Qe7 {[%emt 0:03:24]} 19. Rf3 {[%emt 0:15:51]} Qd7 {[%emt 0:14:56]} 20. Ba3 {[%emt 0:01:01]} c5 {[%emt 0:02:19]} 21. c3 {[%emt 0:05:25]} Rfd8 {[%emt 0:02:35]} 22. Rd1 {[%emt 0:01:08]} Qf7 {[%emt 0:02:51]} 23. Bb5 {[%emt 0:01:48]} d4 {[%emt 0:05:03]} 24. cxd4 {[%emt 0:02:14]} cxd4 {[%emt 0:01:02]} 25. Bc6 {[%emt 0:03:18]} Rab8 {[%emt 0:00:43]} 26. Nxd4 {[%emt 0:04:34]} Rxd4 {[%emt 0:02:11]} 27. Rxd4 {[%emt 0:00:01]} Bxd4 {[%emt 0:00:37]} 28. Rd3 {[%emt 0:01:18]} Bb6 {[%emt 0:00:30]} 29. Qd1 {[%emt 0:01:07]} Kh8 {[%emt 0:03:43]} 30. Rd8+ {[%emt 0:01:02]} Rxd8 {[%emt 0:00:27]} 31. Qxd8+ {[%emt 0:00:01]} Qg8 {[%emt 0:00:12]} 32. Qe7 {[%emt 0:00:48]} Qf7 {[%emt 0:04:47]} 33. Qd8+ {[%emt 0:00:03]} Ng8 {[%emt 0:00:29]} 34. Be8 {[%emt 0:00:16]} c6 {[%emt 0:01:41]} 35. Bxf7 {[%emt 0:00:52]} Bxd8 {[%emt 0:00:09]} 36. Bxe6 {[%emt 0:00:05]} Ne7 {[%emt 0:01:29]} 37. Bd7 {[%emt 0:01:43]} Kg8 {[%emt 0:01:00]} 38. Be6+ {[%emt 0:02:40]} Kf8 {[%emt 0:00:18]} 39. Bxf5 {[%emt 0:00:06]} 1-0

[Event "12th WLC Weekend 2022"]
[Site "Eindhoven"]
[Date "2022.05.15"]
[Round "5.28"]
[White "Plasmans, Bart"]
[Black "Geboers, Jimmy"]
[Result "0-1"]
[ECO "C02"]
[WhiteElo "1775"]
[BlackElo "1845"]
[Annotator "NA RC COMBH"]
[PlyCount "102"]
[EventDate "2022.05.13"]
[EventType "swiss"]
[EventCountry "NED"]
[SourceTitle "playchess.com"]
[Source "ChessBase"]
[SourceQuality "1"]
[TimeControl "5400+30"]

1. e4 {[%emt 0:00:02]} e6 {[%emt 0:00:06]} 2. d4 {[%emt 0:00:17]} d5 {[%emt 0:00:06]} 3. e5 {[%emt 0:00:04]} c5 {[%emt 0:00:04]} 4. c3 {[%emt 0:00:03]} Nc6 {[%emt 0:00:05]} 5. Nf3 {[%emt 0:00:11]} Qb6 {[%emt 0:00:09]} 6. a3 {[%emt 0:00:57]} a5 {[%emt 0:00:06]} 7. Be2 {[%emt 0:01:55]} Nh6 {[%emt 0:00:22]} 8. Bxh6 {[%emt 0:12:22]} Qxb2 {[%emt 0:01:12]} 9. Be3 {[%emt 0:02:18]} Qxa1 {[%emt 0:01:30]} 10. Qc2 $2 {[%emt 0:02:41]} (10. dxc5 $17 {was worth a try.} a4 11. c4) 10... cxd4 {[%emt 0:00:45]} 11. Nxd4 $19 {[%emt 0:00:56]} Nxd4 {[%emt 0:02:05]} 12. Bxd4 {[%emt 0:00:36]} Bxa3 {[%emt 0:20:15]} 13. Bb5+ {[%emt 0:00:35]} Bd7 {[%emt 0:00:17]} 14. Bxd7+ {[%emt 0:00:06]} Kxd7 {[%emt 0:00:05]} 15. Qa4+ {[%emt 0:00:07]} Kc8 {[%emt 0:00:11]} 16. O-O {[%emt 0:00:35]} Bb2 {[%emt 0:00:45]} 17. Qb5 {[%emt 0:00:34]} Ba3 {[%emt 0:02:20]} 18. Nxa3 {[%emt 0:23:33]} Qxa3 {[%emt 0:00:12]} 19. Bc5 {[%emt 0:00:02]} Qa2 {[%emt 0:11:07]} 20. Rb1 {[%emt 0:00:32]} Rb8 {[%emt 0:00:08]} 21. Ba7 {[%emt 0:03:48]} Qc4 {[%emt 0:00:40]} 22. Qxa5 {[%emt 0:00:12]} Qc7 {[%emt 0:15:57]} 23. Qb4 {[%emt 0:04:27]} Ra8 {[%emt 0:07:10]} 24. Bb6 {[%emt 0:00:44]} Qc6 {[%emt 0:00:54]} 25. h3 {[%emt 0:03:19]} Ra6 {[%emt 0:01:58]} 26. Be3 {[%emt 0:02:37]} Rd8 {[%emt 0:03:56]} 27. Qe7 {[%emt 0:04:27]} Qd7 {[%emt 0:01:32]} 28. Qc5+ {[%emt 0:00:25]} Qc7 {[%emt 0:00:21]} 29. Qb4 {[%emt 0:00:35]} Rc6 {[%emt 0:00:51]} 30. Bd4 {[%emt 0:02:08]} Kd7 {[%emt 0:02:52]} 31. f4 {[%emt 0:24:15]} g6 {[%emt 0:02:06]} 32. Kf2 {[%emt 0:02:20]} Ra8 {[%emt 0:01:18]} 33. Kf3 {[%emt 0:00:50]} Ke8 {[%emt 0:00:17]} 34. g4 {[%emt 0:00:46]} Rc8 {[%emt 0:02:36]} 35. Rb3 {[%emt 0:02:08]} Rc4 {[%emt 0:00:41]} 36. Qb5+ {[%emt 0:02:48]} Qc6 {[%emt 0:00:16]} 37. Qa5 {[%emt 0:01:34]} Ra4 {[%emt 0:06:44]} 38. Qb6 {[%emt 0:00:29]} Qxb6 {[%emt 0:00:22]} 39. Rxb6 {[%emt 0:01:56]} Rc7 {[%emt 0:00:24]} 40. Ke3 {[%emt 0:00:22]} Ra6 {[%emt 0:00:21]} 41. Rb3 {[%emt 0:00:27]} Kd7 {[%emt 0:00:14]} 42. Kd3 {[%emt 0:00:06]} Kc6 {[%emt 0:01:10]} 43. Rb2 {[%emt 0:01:21]} b5 {[%emt 0:00:22]} 44. f5 {[%emt 0:00:17]} Ra3 {[%emt 0:00:45]} 45. fxe6 {[%emt 0:00:48]} fxe6 {[%emt 0:00:07]} 46. Rf2 {[%emt 0:00:13]} b4 {[%emt 0:00:11]} 47. Rf6 {[%emt 0:00:09]} Kd7 {[%emt 0:00:20]} 48. Rf7+ {[%emt 0:00:13]} Kc8 {[%emt 0:00:06]} 49. Rf6 {[%emt 0:01:32]} bxc3 {[%emt 0:00:37]} 50. Bxc3 {[%emt 0:01:00]} Raxc3+ {[%emt 0:00:10]} 51. Kd2 {[%emt 0:00:04]} R3c6 {[%emt 0:03:02]} 0-1